Workbook

Sheet Conjunto de datos
A1: Cuenta | B1: Categoría | C1: Descripción | D1: Asignado | E1: Modificado | F1: Codificado | G1: Monto certificado | H1: Comprometido | I1: Devengado | J1: Pagado | K1: Saldo por comprometer | L1: Saldo por devengar | M1: Saldo por pagar | N1: Porcentaje de ejecucion
A2: 5.1.01.05 | B2: Remuneraciones Unificadas | C2: Subp. 1.- Administracion General | D2: 308,112.00 | E2: 0 | F2: 308,112.00 | G2: 224,041.32 | H2: 224,041.32 | I2: 198,250.66 | J2: 194,228.38 | K2: 84,070.68 | L2: 109,861.34 | M2: 308,112.00 | N2: =K2*100/F2 -> 27.29
A3: 5.1.01.06 | B3: Salarios Unificados | C3: Subp. 1.- Administracion General | D3: 13,212.00 | E3: 3,960.00 | F3: 17,172.00 | G3: 10,605.08 | H3: 10,605.08 | I3: 8,724.00 | J3: 8,545.80 | K3: 6,566.92 | L3: 8,448.00 | M3: 17,172.00 | N3: 38.24
A4: 5.1.02.03.01 | B4: Decimotercer Sueldo (Personal Permanente) | C4: Subp. 1.- Administracion General | D4: 18,027.00 | E4: -246.67 | F4: 17,780.33 | G4: 1,784.95 | H4: 1,784.95 | I4: 1,583.28 | J4: 1,583.28 | K4: 15,995.38 | L4: 16,197.05 | M4: 17,780.33 | N4: 89.96
A5: 5.1.02.03.02 | B5: Decimotercer Sueldo (Personal Eventual) | C5: Subp. 1.- Administracion General | D5: 1,325.00 | E5: 285.00 | F5: 1,610.00 | G5: 0 | H5: 0 | I5: 0 | J5: 0 | K5: 1,610.00 | L5: 1,610.00 | M5: 1,610.00 | N5: 100.00
A6: 5.1.02.03.03 | B6: Decimotercer Sueldo (Concejales) | C6: Subp. 1.- Administracion General | D6: 8,750.00 | E6: 291.67 | F6: 9,041.67 | G6: 291.67 | H6: 291.67 | I6: 291.67 | J6: 291.67 | K6: 8,750.00 | L6: 8,750.00 | M6: 9,041.67 | N6: 96.77
A7: 5.1.02.04.01 | B7: Decimocuarto Sueldo (Personal Permanente) | C7: Subp. 1.- Administracion General | D7: 9,588.68 | E7: 0 | F7: 9,588.68 | G7: 6,379.16 | H7: 6,379.16 | I7: 6,340.00 | J7: 6,377.50 | K7: 3,209.52 | L7: 3,248.68 | M7: 9,588.68 | N7: 33.47
A8: 5.1.02.04.02 | B8: Decimocuarto Sueldo (Personal Eventual) | C8: Subp. 1.- Administracion General | D8: 1,128.08 | E8: 235.00 | F8: 1,363.08 | G8: 940.00 | H8: 940.00 | I8: 940.00 | J8: 940.00 | K8: 423.08 | L8: 423.08 | M8: 1,363.08 | N8: 31.04
A9: 5.1.02.04.03 | B9: Decimo Cuarto Sueldo- Concejales | C9: Subp. 1.- Administracion General | D9: 2,820.20 | E9: 0 | F9: 2,820.20 | G9: 2,387.50 | H9: 2,387.50 | I9: 2,387.50 | J9: 2,350.00 | K9: 432.70 | L9: 432.70 | M9: 2,820.20 | N9: 15.34
A10: 5.1.03.06 | B10: Refrigerio | C10: Subp. 1.- Administracion General | D10: 0 | E10: 1,485.00 | F10: 1,485.00 | G10: 1,446.75 | H10: 1,446.75 | I10: 0 | J10: 0 | K10: 38.25 | L10: 1,485.00 | M10: 1,485.00 | N10: 2.58
A11: 5.1.04.01 | B11: Por Cargas Familiares | C11: Subp. 1.- Administracion General | D11: 63.72 | E11: 5.40 | F11: 69.12 | G11: 55.59 | H11: 55.59 | I11: 42.48 | J11: 37.17 | K11: 13.53 | L11: 26.64 | M11: 69.12 | N11: 19.57
A12: 5.1.04.08 | B12: Subsidio De Antiguedad | C12: Subp. 1.- Administracion General | D12: 116.82 | E12: 14.85 | F12: 131.67 | G12: 107.84 | H12: 107.84 | I12: 77.92 | J12: 58.44 | K12: 23.83 | L12: 53.75 | M12: 131.67 | N12: 18.10
A13: 5.1.05.07 | B13: Honorarios | C13: Subp. 1.- Administracion General | D13: 8,750.00 | E13: 0 | F13: 8,750.00 | G13: 4,375.00 | H13: 4,375.00 | I13: 2,625.00 | J13: 2,625.00 | K13: 4,375.00 | L13: 6,125.00 | M13: 8,750.00 | N13: 50.00
A14: 5.1.05.10 | B14: Servicios Personales por Contrato | C14: Subp. 1.- Administracion General | D14: 15,900.00 | E14: 0 | F14: 15,900.00 | G14: 11,925.00 | H14: 11,925.00 | I14: 10,600.00 | J14: 10,446.97 | K14: 3,975.00 | L14: 5,300.00 | M14: 15,900.00 | N14: 25.00
A15: 5.1.05.12 | B15: Subrogacion | C15: Subp. 1.- Administracion General | D15: 0 | E15: 541.52 | F15: 541.52 | G15: 541.52 | H15: 541.52 | I15: 0 | J15: 0 | K15: 0 | L15: 541.52 | M15: 541.52 | N15: 0
A16: 5.1.06.01.01 | B16: Aporte Patronal (Personal Permanente) | C16: Subp. 1.- Administracion General | D16: 25,267.81 | E16: 128.70 | F16: 25,396.51 | G16: 18,214.32 | H16: 18,214.32 | I16: 16,001.14 | J16: 14,005.58 | K16: 7,182.19 | L16: 9,395.37 | M16: 25,396.51 | N16: 28.28
A17: 5.1.06.01.02 | B17: Aporte Patronal (Personal Eventual) | C17: Subp. 1.- Administracion General | D17: 1,852.35 | E17: 415.53 | F17: 2,267.88 | G17: 1,389.24 | H17: 1,389.24 | I17: 1,234.88 | J17: 1,080.52 | K17: 878.64 | L17: 1,033.00 | M17: 2,267.88 | N17: 38.74
A18: 5.1.06.01.03 | B18: Aporte Patronal (Concejales) | C18: Subp. 1.- Administracion General | D18: 12,232.50 | E18: 0 | F18: 12,232.50 | G18: 9,174.92 | H18: 9,174.92 | I18: 8,155.04 | J18: 7,135.66 | K18: 3,057.58 | L18: 4,077.46 | M18: 12,232.50 | N18: 25.00
A19: 5.1.06.02.01 | B19: Fondos De Reserva (Personal Permanente) | C19: Subp. 1.- Administracion General | D19: 18,027.00 | E19: 4,420.00 | F19: 22,447.00 | G19: 17,721.39 | H19: 17,721.39 | I19: 15,544.67 | J19: 15,660.45 | K19: 4,725.61 | L19: 6,902.33 | M19: 22,447.00 | N19: 21.05
A20: 5.1.06.02.02 | B20: Fondos De Reserva (Personal Eventual) | C20: Subp. 1.- Administracion General | D20: 1,325.00 | E20: 285.00 | F20: 1,610.00 | G20: 993.33 | H20: 993.33 | I20: 882.96 | J20: 882.96 | K20: 616.67 | L20: 727.04 | M20: 1,610.00 | N20: 38.30
A21: 5.1.06.02.03 | B21: Fondos De Reserva (Concejales) | C21: Subp. 1.- Administracion General | D21: 8,750.00 | E21: -4,375.00 | F21: 4,375.00 | G21: 0 | H21: 0 | I21: 0 | J21: 0 | K21: 4,375.00 | L21: 4,375.00 | M21: 4,375.00 | N21: 100.00
A22: 5.1.07.07 | B22: Compensacion Por Vacaciones No Gozadas Por Cesacion De Funciones | C22: Subp. 1.- Administracion General | D22: 3,000.00 | E22: 0 | F22: 3,000.00 | G22: 0 | H22: 0 | I22: 0 | J22: 0 | K22: 3,000.00 | L22: 3,000.00 | M22: 3,000.00 | N22: 100.00
A23: 5.3.01.01 | B23: Agua Potable | C23: Subp. 1.- Administracion General | D23: 6,000.00 | E23: 0 | F23: 6,000.00 | G23: 3,594.25 | H23: 3,594.25 | I23: 3,099.71 | J23: 3,099.71 | K23: 2,405.75 | L23: 2,900.29 | M23: 6,000.00 | N23: 40.10
A24: 5.3.01.04 | B24: Energía Eléctrica | C24: Subp. 1.- Administracion General | D24: 8,000.00 | E24: 3,000.00 | F24: 11,000.00 | G24: 5,445.26 | H24: 5,445.26 | I24: 4,858.48 | J24: 4,858.48 | K24: 5,554.74 | L24: 6,141.52 | M24: 11,000.00 | N24: 50.50
A25: 5.3.01.05 | B25: Telecomunicaciones | C25: Subp. 1.- Administracion General | D25: 5,000.00 | E25: 3,000.00 | F25: 8,000.00 | G25: 5,919.97 | H25: 5,919.97 | I25: 5,432.62 | J25: 5,432.62 | K25: 2,080.03 | L25: 2,567.38 | M25: 8,000.00 | N25: 26.00
A26: 5.3.01.06 | B26: Servicio de Correo | C26: Subp. 1.- Administracion General | D26: 50.00 | E26: -50.00 | F26: 0 | G26: 0 | H26: 0 | I26: 0 | J26: 0 | K26: 0 | L26: 0 | M26: 0 | N26: 0
A27: 5.3.02.04 | B27: Edición, Impresión, Reproducción y Publicaciones | C27: Subp. 1.- Administracion General | D27: 2,500.00 | E27: 2,500.00 | F27: 5,000.00 | G27: 211.21 | H27: 211.21 | I27: 211.21 | J27: 211.21 | K27: 4,788.79 | L27: 4,788.79 | M27: 5,000.00 | N27: 95.78
A28: 5.3.02.07 | B28: Difusión, Información y Publicidad | C28: Subp. 1.- Administracion General | D28: 6,000.00 | E28: 13,680.00 | F28: 19,680.00 | G28: 6,000.00 | H28: 6,000.00 | I28: 1,868.26 | J28: 1,816.88 | K28: 13,680.00 | L28: 17,811.74 | M28: 19,680.00 | N28: 69.51
A29: 5.3.02.46 | B29: Servicios De Identificación, Marcación, Autentificación, Rastreo, Monitoreo, Seguimiento | C29: Subp. 1.- Administracion General | D29: 5,200.00 | E29: -200.00 | F29: 5,000.00 | G29: 5,000.00 | H29: 5,000.00 | I29: 0 | J29: 0 | K29: 0 | L29: 5,000.00 | M29: 5,000.00 | N29: 0
A30: 5.3.02.55 | B30: Combustible | C30: Subp. 1.- Administracion General | D30: 300.00 | E30: 0 | F30: 300.00 | G30: 0 | H30: 0 | I30: 0 | J30: 0 | K30: 300.00 | L30: 300.00 | M30: 300.00 | N30: 100.00
A31: 5.3.03.01 | B31: Pasajes al Interior | C31: Subp. 1.- Administracion General | D31: 500.00 | E31: -500.00 | F31: 0 | G31: 0 | H31: 0 | I31: 0 | J31: 0 | K31: 0 | L31: 0 | M31: 0 | N31: 0
A32: 5.3.03.03 | B32: Viáticos y Subsistencias en el Interior | C32: Subp. 1.- Administracion General | D32: 500.00 | E32: -500.00 | F32: 0 | G32: 0 | H32: 0 | I32: 0 | J32: 0 | K32: 0 | L32: 0 | M32: 0 | N32: 0
A33: 5.3.04.02 | B33: Edificios, Locales, Residencias y Cableado Estructurado (Instalación, Mantenimiento y Reparación) | C33: Subp. 1.- Administracion General | D33: 1,500.00 | E33: -1,500.00 | F33: 0 | G33: 0 | H33: 0 | I33: 0 | J33: 0 | K33: 0 | L33: 0 | M33: 0 | N33: 0
A34: 5.3.04.03 | B34: Mobiliarios | C34: Subp. 1.- Administracion General | D34: 500.00 | E34: -500.00 | F34: 0 | G34: 0 | H34: 0 | I34: 0 | J34: 0 | K34: 0 | L34: 0 | M34: 0 | N34: 0
A35: 5.3.04.04 | B35: Maquinarias y Equipos | C35: Subp. 1.- Administracion General | D35: 1,500.00 | E35: -1,500.00 | F35: 0 | G35: 0 | H35: 0 | I35: 0 | J35: 0 | K35: 0 | L35: 0 | M35: 0 | N35: 0
A36: 5.3.04.05 | B36: Vehículos (Servicio para Mantenimiento y Reparación) | C36: Subp. 1.- Administracion General | D36: 1,500.00 | E36: 0 | F36: 1,500.00 | G36: 43.48 | H36: 43.48 | I36: 43.48 | J36: 43.48 | K36: 1,456.52 | L36: 1,456.52 | M36: 1,500.00 | N36: 97.10
A37: 5.3.06.06 | B37: Honorarios Por Contratos Civiles De Servicios | C37: Subp. 1.- Administracion General | D37: 16,463.80 | E37: 0 | F37: 16,463.80 | G37: 15,000.00 | H37: 15,000.00 | I37: 15,000.00 | J37: 14,300.00 | K37: 1,463.80 | L37: 1,463.80 | M37: 16,463.80 | N37: 8.89
A38: 5.3.06.12 | B38: Capacitación A Servidores Públicos | C38: Subp. 1.- Administracion General | D38: 0 | E38: 5,000.00 | F38: 5,000.00 | G38: 0 | H38: 0 | I38: 0 | J38: 0 | K38: 5,000.00 | L38: 5,000.00 | M38: 5,000.00 | N38: 100.00
A39: 5.3.06.13 | B39: Capacitación Para La Ciudadanía En General | C39: Subp. 1.- Administracion General | D39: 500.00 | E39: -500.00 | F39: 0 | G39: 0 | H39: 0 | I39: 0 | J39: 0 | K39: 0 | L39: 0 | M39: 0 | N39: 0
A40: 5.3.07.01 | B40: Desarrollo De Sistemas Informáticos | C40: Subp. 1.- Administracion General | D40: 5,000.00 | E40: -5,000.00 | F40: 0 | G40: 0 | H40: 0 | I40: 0 | J40: 0 | K40: 0 | L40: 0 | M40: 0 | N40: 0
A41: 5.3.07.02 | B41: Arrendamiento y Licencias de Uso de Paquetes Informáticos | C41: Subp. 1.- Administracion General | D41: 5,000.00 | E41: -3,000.00 | F41: 2,000.00 | G41: 200.00 | H41: 200.00 | I41: 200.00 | J41: 200.00 | K41: 1,800.00 | L41: 1,800.00 | M41: 2,000.00 | N41: 90.00
A42: 5.3.07.04 | B42: Mantenimiento y Reparación de Equipos y Sistemas Informáticos | C42: Subp. 1.- Administracion General | D42: 2,500.00 | E42: -500.00 | F42: 2,000.00 | G42: 1,620.00 | H42: 1,620.00 | I42: 0 | J42: 0 | K42: 380.00 | L42: 2,000.00 | M42: 2,000.00 | N42: 19.00
A43: 5.3.08.02.01 | B43: Vestuario Y Lenceria | C43: Subp. 1.- Administracion General | D43: 4,000.00 | E43: -500.00 | F43: 3,500.00 | G43: 3,155.42 | H43: 3,155.42 | I43: 894.16 | J43: 884.42 | K43: 344.58 | L43: 2,605.84 | M43: 3,500.00 | N43: 9.85
A44: 5.3.08.03 | B44: Lubricantes | C44: Subp. 1.- Administracion General | D44: 1,200.00 | E44: 0 | F44: 1,200.00 | G44: 1,200.00 | H44: 1,200.00 | I44: 1,188.92 | J44: 1,188.92 | K44: 0 | L44: 11.08 | M44: 0 | N44: 0
A45: 5.3.08.04 | B45: Materiales de Oficina | C45: Subp. 1.- Administracion General | D45: 200.00 | E45: 100.00 | F45: 300.00 | G45: 120.40 | H45: 120.40 | I45: 120.40 | J45: 120.40 | K45: 179.60 | L45: 179.60 | M45: 300.00 | N45: 59.87
A46: 5.3.08.05 | B46: Materiales de Aseo | C46: Subp. 1.- Administracion General | D46: 200.00 | E46: 0 | F46: 200.00 | G46: 200.00 | H46: 200.00 | I46: 200.00 | J46: 200.00 | K46: 0 | L46: 0 | M46: 0 | N46: 0
A47: 5.3.08.07 | B47: Materiales de Impresión, Fotografía, Reproducción y Publicaciones | C47: Subp. 1.- Administracion General | D47: 2,500.00 | E47: -500.00 | F47: 2,000.00 | G47: 1,387.70 | H47: 1,387.70 | I47: 1,387.69 | J47: 1,387.69 | K47: 612.30 | L47: 612.31 | M47: 2,000.00 | N47: 30.62
A48: 5.3.08.11 | B48: Materiales de Construcción, Eléctricos, Plomería y Carpintería | C48: Subp. 1.- Administracion General | D48: 600.00 | E48: 599.78 | F48: 1,199.78 | G48: 901.00 | H48: 901.00 | I48: 901.00 | J48: 901.00 | K48: 298.78 | L48: 298.78 | M48: 1,199.78 | N48: 24.90
A49: 5.3.08.13 | B49: Repuestos y Accesorios | C49: Subp. 1.- Administracion General | D49: 1,200.00 | E49: 11,984.52 | F49: 13,184.52 | G49: 6,817.16 | H49: 6,817.16 | I49: 191.96 | J49: 191.96 | K49: 6,367.36 | L49: 12,992.56 | M49: 13,184.52 | N49: 48.29
A50: 5.3.14.03 | B50: Mobiliarios | C50: Subp. 1.- Administracion General | D50: 100.00 | E50: -100.00 | F50: 0 | G50: 0 | H50: 0 | I50: 0 | J50: 0 | K50: 0 | L50: 0 | M50: 0 | N50: 0
A51: 5.3.14.04 | B51: Maquinarias y Equipos | C51: Subp. 1.- Administracion General | D51: 100.00 | E51: 366.78 | F51: 466.78 | G51: 457.11 | H51: 457.11 | I51: 457.11 | J51: 360.06 | K51: 9.67 | L51: 9.67 | M51: 466.78 | N51: 2.07
A52: 5.3.14.06 | B52: Herramientas y Equipos Menores | C52: Subp. 1.- Administracion General | D52: 100.00 | E52: -100.00 | F52: 0 | G52: 0 | H52: 0 | I52: 0 | J52: 0 | K52: 0 | L52: 0 | M52: 0 | N52: 0
A53: 5.3.14.07 | B53: Equipos, Sistemas Y Paquetes Informáticos | C53: Subp. 1.- Administracion General | D53: 100.00 | E53: 0 | F53: 100.00 | G53: 72.00 | H53: 72.00 | I53: 0 | J53: 0 | K53: 28.00 | L53: 100.00 | M53: 100.00 | N53: 28.00
A54: 5.3.14.08 | B54: Bienes Artísticos y Culturales | C54: Subp. 1.- Administracion General | D54: 100.00 | E54: -100.00 | F54: 0 | G54: 0 | H54: 0 | I54: 0 | J54: 0 | K54: 0 | L54: 0 | M54: 0 | N54: 0
A55: 5.7.01.02.01 | B55: Tasas Generales, Impuestos, Contribuciones, Permisos, Licencias Y Patentes | C55: Subp. 1.- Administracion General | D55: 56.00 | E55: -56.00 | F55: 0 | G55: 0 | H55: 0 | I55: 0 | J55: 0 | K55: 0 | L55: 0 | M55: 0 | N55: 0
A56: 5.7.02.01.01 | B56: Segruro (Personal) | C56: Subp. 1.- Administracion General | D56: 1,296.00 | E56: 0 | F56: 1,296.00 | G56: 1,296.00 | H56: 1,296.00 | I56: 1,296.00 | J56: 1,292.25 | K56: 0 | L56: 0 | M56: 1,296.00 | N56: 0
A57: 5.7.02.01.02 | B57: Seguros (Bienes) | C57: Subp. 1.- Administracion General | D57: 1,500.00 | E57: 0 | F57: 1,500.00 | G57: 1,500.00 | H57: 1,500.00 | I57: 1,420.00 | J57: 1,420.00 | K57: 0 | L57: 80.00 | M57: 1,500.00 | N57: 0
A58: 5.7.02.03 | B58: Comisiones Bancarias | C58: Subp. 1.- Administracion General | D58: 400.00 | E58: -400.00 | F58: 0 | G58: 0 | H58: 0 | I58: 0 | J58: 0 | K58: 0 | L58: 0 | M58: 0 | N58: 0
A59: 5.7.02.06 | B59: Costas Judiciales, Trámites Notariales, Legalización De Documentos Y Arreglos Extrajudiciales | C59: Subp. 1.- Administracion General | D59: 500.00 | E59: 0 | F59: 500.00 | G59: 99.00 | H59: 99.00 | I59: 99.00 | J59: 99.00 | K59: 401.00 | L59: 401.00 | M59: 500.00 | N59: 80.20
A60: 7.3.08.11 | B60: Materiales De Construcción, Eléctricos, Plomería Y Carpintería | C60: Subp. 1.- Administracion General | D60: 0 | E60: 0 | F60: 0 | G60: 0 | H60: 0 | I60: 0 | J60: 27.75 | K60: 0 | L60: 0 | M60: 0 | N60: 0
A61: 8.4.01.04.01 | B61: Maquinaria Y Equipo | C61: Subp. 1.- Administracion General | D61: 0 | E61: 2,140.00 | F61: 2,140.00 | G61: 140.00 | H61: 140.00 | I61: 140.00 | J61: 140.00 | K61: 2,000.00 | L61: 2,000.00 | M61: 2,140.00 | N61: 0
A62: 8.4.01.05 | B62: Vehículos | C62: Subp. 1.- Administracion General | D62: 100.00 | E62: -100.00 | F62: 0 | G62: 0 | H62: 0 | I62: 0 | J62: 0 | K62: 0 | L62: 0 | M62: 0 | N62: 0
A63: 8.4.01.06 | B63: Herramientas | C63: Subp. 1.- Administracion General | D63: 0 | E63: 313.67 | F63: 313.67 | G63: 313.67 | H63: 313.67 | I63: 313.67 | J63: 313.67 | K63: 0 | L63: 0 | M63: 313.67 | N63: 0
A64: 8.4.01.07.01 | B64: Equipos, Sistemas Y Paquetes Informáticos | C64: Subp. 1.- Administracion General | D64: 10,000.00 | E64: 8,164.49 | F64: 18,164.49 | G64: 13,118.68 | H64: 13,118.68 | I64: 4,005.58 | J64: 4,005.58 | K64: 5,045.81 | L64: 14,158.91 | M64: 18,164.49 | N64: 27.78
A65: 5.1.01.06 | B65: Salarios Unificados | C65: Subp. 2.-gestión Administrativa Técnica | D65: 53,665.92 | E65: 2,361.70 | F65: 56,027.62 | G65: 39,677.79 | H65: 39,677.79 | I65: 32,885.00 | J65: 32,195.66 | K65: 16,349.83 | L65: 23,142.62 | M65: 56,027.62 | N65: 29.18
A66: 5.1.02.03.01 | B66: Decimotercer Sueldo (Personal Permanente) | C66: Subp. 2.-gestión Administrativa Técnica | D66: 4,472.16 | E66: 196.81 | F66: 4,668.97 | G66: 662.83 | H66: 662.83 | I66: 353.94 | J66: 353.94 | K66: 4,006.14 | L66: 4,315.03 | M66: 4,668.97 | N66: =K66*100/F66 -> 85.80
A67: 5.1.02.04.01 | B67: Decimocuarto Sueldo (Personal Permanente) | C67: Subp. 2.-gestión Administrativa Técnica | D67: 3,760.00 | E67: 0 | F67: 3,760.00 | G67: 3,636.64 | H67: 3,636.64 | I67: 3,598.31 | J67: 3,598.31 | K67: 123.36 | L67: 161.69 | M67: 3,760.00 | N67: 3.28
A68: 5.1.03.06 | B68: Refrigerio | C68: Subp. 2.-gestión Administrativa Técnica | D68: 400.00 | E68: 6,627.50 | F68: 7,027.50 | G68: 6,542.25 | H68: 6,542.25 | I68: 0 | J68: 0 | K68: 485.25 | L68: 7,027.50 | M68: 7,027.50 | N68: 6.91
A69: 5.1.04.01 | B69: Por Cargas Familiares | C69: Subp. 2.-gestión Administrativa Técnica | D69: 195.84 | E69: 14.40 | F69: 210.24 | G69: 158.33 | H69: 158.33 | I69: 120.56 | J69: 104.24 | K69: 51.91 | L69: 89.68 | M69: 210.24 | N69: 24.69
A70: 5.1.04.08 | B70: Subsidio De Antiguedad | C70: Subp. 2.-gestión Administrativa Técnica | D70: 541.62 | E70: 64.80 | F70: 606.42 | G70: 476.72 | H70: 476.72 | I70: 361.12 | J70: 270.84 | K70: 129.70 | L70: 245.30 | M70: 606.42 | N70: 0
A71: 5.1.05.09 | B71: Horas Extraordinarias y Suplementarias | C71: Subp. 2.-gestión Administrativa Técnica | D71: 200.00 | E71: -200.00 | F71: 0 | G71: 0 | H71: 0 | I71: 0 | J71: 0 | K71: 0 | L71: 0 | M71: 0 | N71: 0
A72: 5.1.06.01.01 | B72: Aporte Patronal (Personal Permanente) | C72: Subp. 2.-gestión Administrativa Técnica | D72: 5,140.91 | E72: 286.95 | F72: 5,427.86 | G72: 4,820.83 | H72: 4,820.83 | I72: 3,995.50 | J72: 3,483.62 | K72: 607.03 | L72: 1,432.36 | M72: 5,427.86 | N72: 11.18
A73: 5.1.06.02.01 | B73: Fondos De Reserva (Personal Permanente) | C73: Subp. 2.-gestión Administrativa Técnica | D73: 3,526.00 | E73: 196.81 | F73: 3,722.81 | G73: 3,143.36 | H73: 3,143.36 | I73: 2,586.17 | J73: 2,586.17 | K73: 579.45 | L73: 1,136.64 | M73: 3,722.81 | N73: 0
A74: 5.3.01.05 | B74: Telecomunicaciones | C74: Subp. 2.-gestión Administrativa Técnica | D74: 350.00 | E74: -350.00 | F74: 0 | G74: 0 | H74: 0 | I74: 0 | J74: 0 | K74: 0 | L74: 0 | M74: 0 | N74: 0
A75: 5.3.02.04 | B75: Edición, Impresión, Reproducción Y Publicaciones | C75: Subp. 2.-gestión Administrativa Técnica | D75: 500.00 | E75: 0 | F75: 500.00 | G75: 30.96 | H75: 30.96 | I75: 30.96 | J75: 30.96 | K75: 469.04 | L75: 469.04 | M75: 500.00 | N75: 93.81
A76: 5.3.02.46 | B76: Servicios De Identificación, Marcación, Autentificación, Rastreo, Monitoreo, Seguimiento | C76: Subp. 2.-gestión Administrativa Técnica | D76: 5,000.00 | E76: -3,200.00 | F76: 1,800.00 | G76: 1,799.68 | H76: 1,799.68 | I76: 0 | J76: 0 | K76: 0.32 | L76: 1,800.00 | M76: 1,800.00 | N76: 0
A77: 5.3.02.55 | B77: Combustible | C77: Subp. 2.-gestión Administrativa Técnica | D77: 500.00 | E77: -500.00 | F77: 0 | G77: 0 | H77: 0 | I77: 0 | J77: 0 | K77: 0 | L77: 0 | M77: 0 | N77: 0
A78: 5.3.03.01 | B78: Pasajes Al Interior | C78: Subp. 2.-gestión Administrativa Técnica | D78: 200.00 | E78: -200.00 | F78: 0 | G78: 0 | H78: 0 | I78: 0 | J78: 0 | K78: 0 | L78: 0 | M78: 0 | N78: 0
A79: 5.3.03.03 | B79: Viáticos Y Subsistencias En El Interior | C79: Subp. 2.-gestión Administrativa Técnica | D79: 200.00 | E79: -200.00 | F79: 0 | G79: 0 | H79: 0 | I79: 0 | J79: 0 | K79: 0 | L79: 0 | M79: 0 | N79: 0
A80: 5.3.04.02 | B80: Edificios, Locales, Residencias Y Cableado Estructurado (Instalación, Mantenimiento Y Reparación) | C80: Subp. 2.-gestión Administrativa Técnica | D80: 100.00 | E80: -100.00 | F80: 0 | G80: 0 | H80: 0 | I80: 0 | J80: 0 | K80: 0 | L80: 0 | M80: 0 | N80: 0
A81: 5.3.04.05 | B81: Vehículos (Servicio para Mantenimiento y Reparación) | C81: Subp. 2.-gestión Administrativa Técnica | D81: 26,482.00 | E81: 0 | F81: 26,482.00 | G81: 2,500.00 | H81: 2,500.00 | I81: 0 | J81: 0 | K81: 23,982.00 | L81: 26,482.00 | M81: 23,982.00 | N81: 0
A82: 5.3.06.12 | B82: Capacitación A Servidores Públicos | C82: Subp. 2.-gestión Administrativa Técnica | D82: 500.00 | E82: -500.00 | F82: 0 | G82: 0 | H82: 0 | I82: 0 | J82: 0 | K82: 0 | L82: 0 | M82: 0 | N82: 0
A83: 5.3.07.04 | B83: Mantenimiento Y Reparación De Equipos Y Sistemas Informáticos | C83: Subp. 2.-gestión Administrativa Técnica | D83: 500.00 | E83: -500.00 | F83: 0 | G83: 0 | H83: 0 | I83: 0 | J83: 0 | K83: 0 | L83: 0 | M83: 0 | N83: 0
A84: 5.3.08.02.01 | B84: Vestuario Y Lenceria | C84: Subp. 2.-gestión Administrativa Técnica | D84: 5,000.00 | E84: 0 | F84: 5,000.00 | G84: 1,107.55 | H84: 1,107.55 | I84: 569.79 | J84: 569.79 | K84: 3,892.45 | L84: 4,430.21 | M84: 5,000.00 | N84: 77.85
A85: 5.3.08.05 | B85: Materiales De Aseo | C85: Subp. 2.-gestión Administrativa Técnica | D85: 13,000.00 | E85: 0 | F85: 13,000.00 | G85: 12,560.72 | H85: 12,560.72 | I85: 7,875.65 | J85: 7,875.65 | K85: 439.28 | L85: 5,124.35 | M85: 13,000.00 | N85: 3.38
A86: 5.3.08.07 | B86: Materiales De Impresión, Fotografía, Reproducción Y Publicaciones | C86: Subp. 2.-gestión Administrativa Técnica | D86: 500.00 | E86: 0 | F86: 500.00 | G86: 0 | H86: 0 | I86: 0 | J86: 0 | K86: 500.00 | L86: 500.00 | M86: 500.00 | N86: 0
A87: 5.3.08.11 | B87: Materiales De Construcción, Eléctricos, Plomería Y Carpintería | C87: Subp. 2.-gestión Administrativa Técnica | D87: 250.00 | E87: -250.00 | F87: 0 | G87: 0 | H87: 0 | I87: 0 | J87: 0 | K87: 0 | L87: 0 | M87: 0 | N87: 0
A88: 5.3.08.13 | B88: Repuestos Y Accesorios | C88: Subp. 2.-gestión Administrativa Técnica | D88: 7,480.00 | E88: 0 | F88: 7,480.00 | G88: 7,288.04 | H88: 7,288.04 | I88: 6,924.15 | J88: 6,924.15 | K88: 191.96 | L88: 555.85 | M88: 191.96 | N88: 0
A89: 5.3.14.06 | B89: Herramientas Y Equipos Menores | C89: Subp. 2.-gestión Administrativa Técnica | D89: 450.00 | E89: -450.00 | F89: 0 | G89: 0 | H89: 0 | I89: 0 | J89: 0 | K89: 0 | L89: 0 | M89: 0 | N89: 0
A90: 5.7.01.02.02 | B90: Matriculación De Vehículos | C90: Subp. 2.-gestión Administrativa Técnica | D90: 1,128.19 | E90: 0 | F90: 1,128.19 | G90: 809.95 | H90: 809.95 | I90: 809.95 | J90: 809.95 | K90: 318.24 | L90: 318.24 | M90: 1,128.19 | N90: 28.21
A91: 5.7.02.01.01 | B91: Segruro (Personal) | C91: Subp. 2.-gestión Administrativa Técnica | D91: 3,500.00 | E91: 0 | F91: 3,500.00 | G91: 3,500.00 | H91: 3,500.00 | I91: 3,500.00 | J91: 3,500.00 | K91: 0 | L91: 0 | M91: 3,500.00 | N91: 0
A92: 5.7.02.01.02 | B92: Seguros (Bienes) | C92: Subp. 2.-gestión Administrativa Técnica | D92: 2,500.00 | E92: 0 | F92: 2,500.00 | G92: 2,500.00 | H92: 2,500.00 | I92: 2,500.00 | J92: 2,500.00 | K92: 0 | L92: 0 | M92: 2,500.00 | N92: 0
A93: 5.8.02.09 | B93: A Jubilados Patronales | C93: Subp. 2.-gestión Administrativa Técnica | D93: 7,252.00 | E93: 0 | F93: 7,252.00 | G93: 5,180.00 | H93: 5,180.00 | I93: 4,662.00 | J93: 4,662.00 | K93: 2,072.00 | L93: 2,590.00 | M93: 7,252.00 | N93: 0
A94: 8.4.01.06 | B94: Herramientas | C94: Subp. 2.-gestión Administrativa Técnica | D94: 300.00 | E94: -300.00 | F94: 0 | G94: 0 | H94: 0 | I94: 0 | J94: 0 | K94: 0 | L94: 0 | M94: 0 | N94: 0
A95: 8.4.01.11 | B95: Partes Y Repuestos | C95: Subp. 2.-gestión Administrativa Técnica | D95: 10.00 | E95: -10.00 | F95: 0 | G95: 0 | H95: 0 | I95: 0 | J95: 0 | K95: 0 | L95: 0 | M95: 0 | N95: 0
A96: 5.1.01.05 | B96: Remuneraciones Unificadas | C96: Sub.- 3 Seguridad Y Salud Ocupacional | D96: 30,000.00 | E96: 0 | F96: 30,000.00 | G96: 22,500.00 | H96: 22,500.00 | I96: 20,000.00 | J96: 19,605.03 | K96: 7,500.00 | L96: 10,000.00 | M96: 30,000.00 | N96: 25.00
A97: 5.1.02.03.01 | B97: Decimotercer Sueldo (Personal Permanente) | C97: Sub.- 3 Seguridad Y Salud Ocupacional | D97: 2,500.00 | E97: 0 | F97: 2,500.00 | G97: 0 | H97: 0 | I97: 0 | J97: 0 | K97: 2,500.00 | L97: 2,500.00 | M97: 2,500.00 | N97: 100.00
A98: 5.1.02.03.02 | B98: Decimotercer Sueldo (Personal Eventual) | C98: Sub.- 3 Seguridad Y Salud Ocupacional | D98: 820.00 | E98: 0 | F98: 820.00 | G98: 0 | H98: 0 | I98: 0 | J98: 0 | K98: 820.00 | L98: 820.00 | M98: 820.00 | N98: 100.00
A99: 5.1.02.04.01 | B99: Decimocuarto Sueldo (Personal Permanente) | C99: Sub.- 3 Seguridad Y Salud Ocupacional | D99: 940.00 | E99: 470.00 | F99: 1,410.00 | G99: 1,410.00 | H99: 1,410.00 | I99: 1,410.00 | J99: 1,410.00 | K99: 0 | L99: 0 | M99: 1,410.00 | N99: 0
A100: 5.1.02.04.02 | B100: Decimocuarto Sueldo (Personal Eventual) | C100: Sub.- 3 Seguridad Y Salud Ocupacional | D100: 470.00 | E100: 0 | F100: 470.00 | G100: 470.00 | H100: 470.00 | I100: 470.00 | J100: 470.00 | K100: 0 | L100: 0 | M100: 470.00 | N100: 0
A101: 5.1.05.10 | B101: Servicios Personales Por Contrato | C101: Sub.- 3 Seguridad Y Salud Ocupacional | D101: 9,840.00 | E101: 0 | F101: 9,840.00 | G101: 7,380.00 | H101: 7,380.00 | I101: 6,560.00 | J101: 6,465.29 | K101: 2,460.00 | L101: 3,280.00 | M101: 9,840.00 | N101: 25.00
A102: 5.1.06.01.01 | B102: Aporte Patronal (Personal Permanente) | C102: Sub.- 3 Seguridad Y Salud Ocupacional | D102: 3,495.00 | E102: 0 | F102: 3,495.00 | G102: 2,621.25 | H102: 2,621.25 | I102: 2,330.00 | J102: 2,038.75 | K102: 873.75 | L102: 1,165.00 | M102: 3,495.00 | N102: 25.00
A103: 5.1.06.01.02 | B103: Aporte Patronal (Personal Eventual) | C103: Sub.- 3 Seguridad Y Salud Ocupacional | D103: 1,146.36 | E103: 0 | F103: 1,146.36 | G103: 859.77 | H103: 859.77 | I103: 764.24 | J103: 668.71 | K103: 286.59 | L103: 382.12 | M103: 1,146.36 | N103: 25.00
A104: 5.1.06.02.01 | B104: Fondos De Reserva (Personal Permanente) | C104: Sub.- 3 Seguridad Y Salud Ocupacional | D104: 2,500.00 | E104: 0 | F104: 2,500.00 | G104: 1,596.78 | H104: 1,596.78 | I104: 1,388.54 | J104: 1,272.76 | K104: 903.22 | L104: 1,111.46 | M104: 2,500.00 | N104: 36.13
A105: 5.1.06.02.02 | B105: Fondos De Reserva (Personal Eventual) | C105: Sub.- 3 Seguridad Y Salud Ocupacional | D105: 820.00 | E105: 0 | F105: 820.00 | G105: 614.70 | H105: 614.70 | I105: 546.40 | J105: 546.40 | K105: 205.30 | L105: 273.60 | M105: 820.00 | N105: 25.04
A106: 5.1.07.07 | B106: Compensacion Por Vacaciones No Gozadas Por Cesacion De Funciones | C106: Sub.- 3 Seguridad Y Salud Ocupacional | D106: 1,120.00 | E106: 0 | F106: 1,120.00 | G106: 0 | H106: 0 | I106: 0 | J106: 0 | K106: 1,120.00 | L106: 1,120.00 | M106: 1,120.00 | N106: 0
A107: 5.3.01.05 | B107: Telecomunicaciones | C107: Sub.- 3 Seguridad Y Salud Ocupacional | D107: 50.00 | E107: -50.00 | F107: 0 | G107: 0 | H107: 0 | I107: 0 | J107: 0 | K107: 0 | L107: 0 | M107: 0 | N107: 0
A108: 5.3.01.06 | B108: Servicio De Correo | C108: Sub.- 3 Seguridad Y Salud Ocupacional | D108: 50.00 | E108: -50.00 | F108: 0 | G108: 0 | H108: 0 | I108: 0 | J108: 0 | K108: 0 | L108: 0 | M108: 0 | N108: 0
A109: 5.3.02.46 | B109: Servicios De Identificación, Marcación, Autentificación, Rastreo, Monitoreo, Seguimiento | C109: Sub.- 3 Seguridad Y Salud Ocupacional | D109: 500.00 | E109: -500.00 | F109: 0 | G109: 0 | H109: 0 | I109: 0 | J109: 0 | K109: 0 | L109: 0 | M109: 0 | N109: 0
A110: 5.3.02.55 | B110: Combustible | C110: Sub.- 3 Seguridad Y Salud Ocupacional | D110: 50.00 | E110: -50.00 | F110: 0 | G110: 0 | H110: 0 | I110: 0 | J110: 0 | K110: 0 | L110: 0 | M110: 0 | N110: 0
A111: 5.3.03.01 | B111: Pasajes Al Interior | C111: Sub.- 3 Seguridad Y Salud Ocupacional | D111: 50.00 | E111: -50.00 | F111: 0 | G111: 0 | H111: 0 | I111: 0 | J111: 0 | K111: 0 | L111: 0 | M111: 0 | N111: 0
A112: 5.3.03.03 | B112: Viáticos Y Subsistencias En El Interior | C112: Sub.- 3 Seguridad Y Salud Ocupacional | D112: 100.00 | E112: -100.00 | F112: 0 | G112: 0 | H112: 0 | I112: 0 | J112: 0 | K112: 0 | L112: 0 | M112: 0 | N112: 0
A113: 5.3.04.02 | B113: Edificios, Locales, Residencias Y Cableado Estructurado (Instalación, Mantenimiento Y Reparación) | C113: Sub.- 3 Seguridad Y Salud Ocupacional | D113: 1,500.00 | E113: -1,500.00 | F113: 0 | G113: 0 | H113: 0 | I113: 0 | J113: 0 | K113: 0 | L113: 0 | M113: 0 | N113: 0
A114: 5.3.04.04 | B114: Maquinarias Y Equipos | C114: Sub.- 3 Seguridad Y Salud Ocupacional | D114: 50.00 | E114: -50.00 | F114: 0 | G114: 0 | H114: 0 | I114: 0 | J114: 0 | K114: 0 | L114: 0 | M114: 0 | N114: 0
A115: 5.3.07.04 | B115: Mantenimiento Y Reparación De Equipos Y Sistemas Informáticos | C115: Sub.- 3 Seguridad Y Salud Ocupacional | D115: 500.00 | E115: -500.00 | F115: 0 | G115: 0 | H115: 0 | I115: 0 | J115: 0 | K115: 0 | L115: 0 | M115: 0 | N115: 0
A116: 5.3.08.01 | B116: Alimentos Y Bebidas | C116: Sub.- 3 Seguridad Y Salud Ocupacional | D116: 10.00 | E116: -10.00 | F116: 0 | G116: 0 | H116: 0 | I116: 0 | J116: 0 | K116: 0 | L116: 0 | M116: 0 | N116: 0
A117: 5.3.08.02.01 | B117: Vestuario Y Lenceria | C117: Sub.- 3 Seguridad Y Salud Ocupacional | D117: 2,500.00 | E117: 0 | F117: 2,500.00 | G117: 988.40 | H117: 988.40 | I117: 368.46 | J117: 368.46 | K117: 1,511.60 | L117: 2,131.54 | M117: 2,500.00 | N117: 0
A118: 5.3.08.03 | B118: Lubricantes | C118: Sub.- 3 Seguridad Y Salud Ocupacional | D118: 10.00 | E118: -10.00 | F118: 0 | G118: 0 | H118: 0 | I118: 0 | J118: 0 | K118: 0 | L118: 0 | M118: 0 | N118: 0
A119: 5.3.08.04 | B119: Materiales De Oficina | C119: Sub.- 3 Seguridad Y Salud Ocupacional | D119: 100.00 | E119: -100.00 | F119: 0 | G119: 0 | H119: 0 | I119: 0 | J119: 0 | K119: 0 | L119: 0 | M119: 0 | N119: 0
A120: 5.3.08.05 | B120: Materiales De Aseo | C120: Sub.- 3 Seguridad Y Salud Ocupacional | D120: 100.00 | E120: 0 | F120: 100.00 | G120: 100.00 | H120: 100.00 | I120: 96.18 | J120: 96.18 | K120: 0 | L120: 3.82 | M120: 0 | N120: 0
A121: 5.3.08.08 | B121: Instrumental Médico Menor | C121: Sub.- 3 Seguridad Y Salud Ocupacional | D121: 750.00 | E121: -750.00 | F121: 0 | G121: 0 | H121: 0 | I121: 0 | J121: 0 | K121: 0 | L121: 0 | M121: 0 | N121: 0
A122: 5.3.08.09 | B122: Medicamentos | C122: Sub.- 3 Seguridad Y Salud Ocupacional | D122: 1,500.00 | E122: -1,000.00 | F122: 500.00 | G122: 344.10 | H122: 344.10 | I122: 0 | J122: 0 | K122: 155.90 | L122: 500.00 | M122: 500.00 | N122: 31.18
A123: 5.3.08.11 | B123: Materiales De Construcción, Eléctricos, Plomería Y Carpintería | C123: Sub.- 3 Seguridad Y Salud Ocupacional | D123: 125.00 | E123: 0 | F123: 125.00 | G123: 43.90 | H123: 43.90 | I123: 43.90 | J123: 43.90 | K123: 81.10 | L123: 81.10 | M123: 125.00 | N123: 0
A124: 5.3.08.12 | B124: Materiales Didácticos | C124: Sub.- 3 Seguridad Y Salud Ocupacional | D124: 100.00 | E124: -100.00 | F124: 0 | G124: 0 | H124: 0 | I124: 0 | J124: 0 | K124: 0 | L124: 0 | M124: 0 | N124: 0
A125: 5.3.08.13 | B125: Repuestos Y Accesorios | C125: Sub.- 3 Seguridad Y Salud Ocupacional | D125: 500.00 | E125: -500.00 | F125: 0 | G125: 0 | H125: 0 | I125: 0 | J125: 0 | K125: 0 | L125: 0 | M125: 0 | N125: 0
A126: 5.3.08.19 | B126: Accesorios E Insumos Quimicos,Organicos | C126: Sub.- 3 Seguridad Y Salud Ocupacional | D126: 200.00 | E126: -200.00 | F126: 0 | G126: 0 | H126: 0 | I126: 0 | J126: 0 | K126: 0 | L126: 0 | M126: 0 | N126: 0
A127: 5.3.08.26 | B127: Dispositivos Médicos De Uso General | C127: Sub.- 3 Seguridad Y Salud Ocupacional | D127: 2,000.00 | E127: -2,000.00 | F127: 0 | G127: 0 | H127: 0 | I127: 0 | J127: 0 | K127: 0 | L127: 0 | M127: 0 | N127: 0
A128: 5.3.14.03 | B128: Mobiliarios | C128: Sub.- 3 Seguridad Y Salud Ocupacional | D128: 200.00 | E128: -200.00 | F128: 0 | G128: 0 | H128: 0 | I128: 0 | J128: 0 | K128: 0 | L128: 0 | M128: 0 | N128: 0
A129: 5.3.14.06 | B129: Herramientas Y Equipos Menores | C129: Sub.- 3 Seguridad Y Salud Ocupacional | D129: 200.00 | E129: -200.00 | F129: 0 | G129: 0 | H129: 0 | I129: 0 | J129: 0 | K129: 0 | L129: 0 | M129: 0 | N129: 0
A130: 5.3.14.07 | B130: Equipos, Sistemas Y Paquetes Informáticos | C130: Sub.- 3 Seguridad Y Salud Ocupacional | D130: 400.00 | E130: 0 | F130: 400.00 | G130: 238.00 | H130: 238.00 | I130: 0 | J130: 0 | K130: 162.00 | L130: 400.00 | M130: 400.00 | N130: 0
A131: 5.3.14.09 | B131: Libros Y Colecciones | C131: Sub.- 3 Seguridad Y Salud Ocupacional | D131: 20.00 | E131: -20.00 | F131: 0 | G131: 0 | H131: 0 | I131: 0 | J131: 0 | K131: 0 | L131: 0 | M131: 0 | N131: 0
A132: 5.7.01.02.01 | B132: Tasas Generales, Impuestos, Contribuciones, Permisos, Licencias Y Patentes | C132: Sub.- 3 Seguridad Y Salud Ocupacional | D132: 50.00 | E132: -50.00 | F132: 0 | G132: 0 | H132: 0 | I132: 0 | J132: 0 | K132: 0 | L132: 0 | M132: 0 | N132: 0
A133: 5.7.02.01.01 | B133: Segruro (Personal) | C133: Sub.- 3 Seguridad Y Salud Ocupacional | D133: 20.00 | E133: 0 | F133: 20.00 | G133: 20.00 | H133: 20.00 | I133: 20.00 | J133: 20.00 | K133: 0 | L133: 0 | M133: 20.00 | N133: =K133*100/F133 -> 0
A134: 5.7.02.01.02 | B134: Seguros (Bienes) | C134: Sub.- 3 Seguridad Y Salud Ocupacional | D134: 700.00 | E134: 0 | F134: 700.00 | G134: 700.00 | H134: 700.00 | I134: 700.00 | J134: 700.00 | K134: 0 | L134: 0 | M134: 700.00 | N134: 0
A135: 8.4.01.03.01 | B135: Mobiliario | C135: Sub.- 3 Seguridad Y Salud Ocupacional | D135: 500.00 | E135: 3,500.00 | F135: 4,000.00 | G135: 2,789.33 | H135: 2,789.33 | I135: 0 | J135: 0 | K135: 1,210.67 | L135: 4,000.00 | M135: 4,000.00 | N135: 30.27
A136: 8.4.01.04.01 | B136: Maquinaria Y Equipo | C136: Sub.- 3 Seguridad Y Salud Ocupacional | D136: 500.00 | E136: 0 | F136: 500.00 | G136: 0 | H136: 0 | I136: 0 | J136: 0 | K136: 500.00 | L136: 500.00 | M136: 500.00 | N136: 0
A137: 8.4.01.07.01 | B137: Equipos, Sistemas Y Paquetes Informáticos | C137: Sub.- 3 Seguridad Y Salud Ocupacional | D137: 1,300.00 | E137: -1,300.00 | F137: 0 | G137: 0 | H137: 0 | I137: 0 | J137: 0 | K137: 0 | L137: 0 | M137: 0 | N137: 0
A138: 8.4.01.13 | B138: Equipos Médicos | C138: Sub.- 3 Seguridad Y Salud Ocupacional | D138: 4,500.00 | E138: -1,250.00 | F138: 3,250.00 | G138: 0 | H138: 0 | I138: 0 | J138: 0 | K138: 3,250.00 | L138: 3,250.00 | M138: 3,250.00 | N138: 100.00
A139: 5.1.01.05 | B139: Remuneraciones Unificadas | C139: Subgrupo 1.- Administracion Financiera | D139: 131,112.00 | E139: 3,360.00 | F139: 134,472.00 | G139: 97,927.00 | H139: 97,927.00 | I139: 87,001.00 | J139: 85,346.87 | K139: 36,545.00 | L139: 47,471.00 | M139: 134,472.00 | N139: 27.18
A140: 5.1.02.03.01 | B140: Decimotercer Sueldo (Personal Permanente) | C140: Subgrupo 1.- Administracion Financiera | D140: 10,926.00 | E140: 560.00 | F140: 11,486.00 | G140: 3,128.63 | H140: 3,128.63 | I140: 2,875.30 | J140: 2,875.30 | K140: 8,357.37 | L140: 8,610.70 | M140: 11,486.00 | N140: 72.76
A141: 5.1.02.03.02 | B141: Decimotercer Sueldo (Personal Eventual) | C141: Subgrupo 1.- Administracion Financiera | D141: 1,442.00 | E141: 1,442.00 | F141: 2,884.00 | G141: 0 | H141: 0 | I141: 0 | J141: 0 | K141: 2,884.00 | L141: 2,884.00 | M141: 2,884.00 | N141: 100.00
A142: 5.1.02.04.01 | B142: Decimocuarto Sueldo (Personal Permanente) | C142: Subgrupo 1.- Administracion Financiera | D142: 6,580.00 | E142: 0 | F142: 6,580.00 | G142: 6,329.18 | H142: 6,329.18 | I142: 6,196.81 | J142: 6,196.81 | K142: 250.82 | L142: 383.19 | M142: 6,580.00 | N142: 3.81
A143: 5.1.02.04.02 | B143: Decimocuarto Sueldo (Personal Eventual) | C143: Subgrupo 1.- Administracion Financiera | D143: 940.00 | E143: 470.00 | F143: 1,410.00 | G143: 1,198.50 | H143: 1,198.50 | I143: 1,198.50 | J143: 1,198.50 | K143: 211.50 | L143: 211.50 | M143: 1,410.00 | N143: 15.00
A144: 5.1.05.10 | B144: Servicios Personales Por Contrato | C144: Subgrupo 1.- Administracion Financiera | D144: 17,304.00 | E144: 7,464.00 | F144: 24,768.00 | G144: 18,306.47 | H144: 18,306.47 | I144: 16,242.47 | J144: 15,902.28 | K144: 6,461.53 | L144: 8,525.53 | M144: 24,768.00 | N144: 26.09
A145: 5.1.06.01.01 | B145: Aporte Patronal (Personal Permanente) | C145: Subgrupo 1.- Administracion Financiera | D145: 15,274.55 | E145: 408.24 | F145: 15,682.79 | G145: 11,331.29 | H145: 11,331.29 | I145: 10,058.41 | J145: 8,785.53 | K145: 4,351.50 | L145: 5,624.38 | M145: 15,682.79 | N145: 27.75
A146: 5.1.06.01.02 | B146: Aporte Patronal (Personal Eventual) | C146: Subgrupo 1.- Administracion Financiera | D146: 2,015.92 | E146: 820.02 | F146: 2,835.94 | G146: 2,132.73 | H146: 2,132.73 | I146: 1,892.27 | J146: 1,651.81 | K146: 703.21 | L146: 943.67 | M146: 2,835.94 | N146: 24.80
A147: 5.1.06.02.01 | B147: Fondos De Reserva (Personal Permanente) | C147: Subgrupo 1.- Administracion Financiera | D147: 10,926.00 | E147: 0 | F147: 10,926.00 | G147: 7,140.36 | H147: 7,140.36 | I147: 6,282.07 | J147: 6,282.07 | K147: 3,785.64 | L147: 4,643.93 | M147: 10,926.00 | N147: 34.65
A148: 5.1.06.02.02 | B148: Fondos De Reserva (Personal Eventual) | C148: Subgrupo 1.- Administracion Financiera | D148: 1,442.00 | E148: 622.00 | F148: 2,064.00 | G148: 1,524.83 | H148: 1,524.83 | I148: 1,352.91 | J148: 1,352.91 | K148: 539.17 | L148: 711.09 | M148: 2,064.00 | N148: 26.12
A149: 5.1.07.06 | B149: Por Jubilación | C149: Subgrupo 1.- Administracion Financiera | D149: 53,100.00 | E149: 0 | F149: 53,100.00 | G149: 53,100.00 | H149: 53,100.00 | I149: 53,100.00 | J149: 53,100.00 | K149: 0 | L149: 0 | M149: 53,100.00 | N149: 0
A150: 5.1.07.07 | B150: Compensacion Por Vacaciones No Gozadas Por Cesacion De Funciones | C150: Subgrupo 1.- Administracion Financiera | D150: 2,500.00 | E150: 0 | F150: 2,500.00 | G150: 675.25 | H150: 675.25 | I150: 675.25 | J150: 675.25 | K150: 1,824.75 | L150: 1,824.75 | M150: 2,500.00 | N150: 0
A151: 5.3.01.01 | B151: Agua Potable | C151: Subgrupo 1.- Administracion Financiera | D151: 100.00 | E151: -100.00 | F151: 0 | G151: 0 | H151: 0 | I151: 0 | J151: 0 | K151: 0 | L151: 0 | M151: 0 | N151: 0
A152: 5.3.01.04 | B152: Energía Eléctrica | C152: Subgrupo 1.- Administracion Financiera | D152: 2,500.00 | E152: -1,990.00 | F152: 510.00 | G152: 501.33 | H152: 501.33 | I152: 501.33 | J152: 501.33 | K152: 8.67 | L152: 8.67 | M152: 510.00 | N152: 1.70
A153: 5.3.01.05 | B153: Telecomunicaciones | C153: Subgrupo 1.- Administracion Financiera | D153: 3,500.00 | E153: 4,780.00 | F153: 8,280.00 | G153: 5,003.40 | H153: 5,003.40 | I153: 4,247.20 | J153: 4,247.20 | K153: 3,276.60 | L153: 4,032.80 | M153: 8,280.00 | N153: 39.57
A154: 5.3.01.06 | B154: Servicio De Correo | C154: Subgrupo 1.- Administracion Financiera | D154: 50.00 | E154: 0 | F154: 50.00 | G154: 6.96 | H154: 6.96 | I154: 6.96 | J154: 6.96 | K154: 43.04 | L154: 43.04 | M154: 50.00 | N154: 86.08
A155: 5.3.02.04 | B155: Edición, Impresión, Reproducción Y Publicaciones | C155: Subgrupo 1.- Administracion Financiera | D155: 5,500.00 | E155: 0 | F155: 5,500.00 | G155: 1,363.20 | H155: 1,363.20 | I155: 1,363.20 | J155: 1,363.20 | K155: 4,136.80 | L155: 4,136.80 | M155: 5,500.00 | N155: 0
A156: 5.3.02.07 | B156: Difusión, Información Y Publicidad | C156: Subgrupo 1.- Administracion Financiera | D156: 1,100.00 | E156: -1,100.00 | F156: 0 | G156: 0 | H156: 0 | I156: 0 | J156: 0 | K156: 0 | L156: 0 | M156: 0 | N156: 0
A157: 5.3.02.55 | B157: Combustible | C157: Subgrupo 1.- Administracion Financiera | D157: 800.00 | E157: -800.00 | F157: 0 | G157: 0 | H157: 0 | I157: 0 | J157: 0 | K157: 0 | L157: 0 | M157: 0 | N157: 0
A158: 5.3.03.01 | B158: Pasajes Al Interior | C158: Subgrupo 1.- Administracion Financiera | D158: 50.00 | E158: -50.00 | F158: 0 | G158: 0 | H158: 0 | I158: 0 | J158: 0 | K158: 0 | L158: 0 | M158: 0 | N158: 0
A159: 5.3.03.03 | B159: Viáticos Y Subsistencias En El Interior | C159: Subgrupo 1.- Administracion Financiera | D159: 100.00 | E159: -100.00 | F159: 0 | G159: 0 | H159: 0 | I159: 0 | J159: 0 | K159: 0 | L159: 0 | M159: 0 | N159: 0
A160: 5.3.04.03 | B160: Mobiliarios | C160: Subgrupo 1.- Administracion Financiera | D160: 600.00 | E160: -600.00 | F160: 0 | G160: 0 | H160: 0 | I160: 0 | J160: 0 | K160: 0 | L160: 0 | M160: 0 | N160: 0
A161: 5.3.06.01 | B161: Consultoría, Asesoría E Investigación Especializada | C161: Subgrupo 1.- Administracion Financiera | D161: 40,926.90 | E161: -30,926.90 | F161: 10,000.00 | G161: 0 | H161: 0 | I161: 0 | J161: 0 | K161: 10,000.00 | L161: 10,000.00 | M161: 10,000.00 | N161: 0
A162: 5.3.06.12 | B162: Capacitación A Servidores Públicos | C162: Subgrupo 1.- Administracion Financiera | D162: 500.00 | E162: -500.00 | F162: 0 | G162: 0 | H162: 0 | I162: 0 | J162: 0 | K162: 0 | L162: 0 | M162: 0 | N162: 0
A163: 5.3.07.04 | B163: Mantenimiento Y Reparación De Equipos Y Sistemas Informáticos | C163: Subgrupo 1.- Administracion Financiera | D163: 100.00 | E163: -100.00 | F163: 0 | G163: 0 | H163: 0 | I163: 0 | J163: 0 | K163: 0 | L163: 0 | M163: 0 | N163: 0
A164: 5.3.08.02.01 | B164: Vestuario Y Lenceria | C164: Subgrupo 1.- Administracion Financiera | D164: 1,700.00 | E164: 0 | F164: 1,700.00 | G164: 1,700.00 | H164: 1,700.00 | I164: 1,250.57 | J164: 1,250.57 | K164: 0 | L164: 449.43 | M164: 1,700.00 | N164: 0
A165: 5.3.08.03 | B165: Lubricantes | C165: Subgrupo 1.- Administracion Financiera | D165: 50.00 | E165: -50.00 | F165: 0 | G165: 0 | H165: 0 | I165: 0 | J165: 0 | K165: 0 | L165: 0 | M165: 0 | N165: 0
A166: 5.3.08.04 | B166: Materiales de Oficina | C166: Subgrupo 1.- Administracion Financiera | D166: 17,000.00 | E166: -2,000.00 | F166: 15,000.00 | G166: 14,963.30 | H166: 14,963.30 | I166: 11,392.90 | J166: 11,392.90 | K166: 36.70 | L166: 3,607.10 | M166: 15,000.00 | N166: 0
A167: 5.3.08.05 | B167: Materiales De Aseo | C167: Subgrupo 1.- Administracion Financiera | D167: 60.00 | E167: -60.00 | F167: 0 | G167: 0 | H167: 0 | I167: 0 | J167: 0 | K167: 0 | L167: 0 | M167: 0 | N167: 0
A168: 5.3.08.07 | B168: Materiales De Impresión, Fotografía, Reproducción Y Publicaciones | C168: Subgrupo 1.- Administracion Financiera | D168: 2,000.00 | E168: 0 | F168: 2,000.00 | G168: 869.00 | H168: 869.00 | I168: 868.99 | J168: 868.99 | K168: 1,131.00 | L168: 1,131.01 | M168: 2,000.00 | N168: 56.55
A169: 5.3.08.11 | B169: Materiales De Construcción, Eléctricos, Plomería Y Carpintería | C169: Subgrupo 1.- Administracion Financiera | D169: 250.00 | E169: 0 | F169: 250.00 | G169: 0 | H169: 0 | I169: 0 | J169: 0 | K169: 250.00 | L169: 250.00 | M169: 250.00 | N169: 100.00
A170: 5.3.08.13 | B170: Repuestos Y Accesorios | C170: Subgrupo 1.- Administracion Financiera | D170: 50.00 | E170: 0 | F170: 50.00 | G170: 39.13 | H170: 39.13 | I170: 39.13 | J170: 39.13 | K170: 10.87 | L170: 10.87 | M170: 50.00 | N170: 0
A171: 5.3.14.04 | B171: Maquinarias Y Equipos | C171: Subgrupo 1.- Administracion Financiera | D171: 10.00 | E171: -10.00 | F171: 0 | G171: 0 | H171: 0 | I171: 0 | J171: 0 | K171: 0 | L171: 0 | M171: 0 | N171: 0
A172: 5.3.14.06 | B172: Herramientas Y Equipos Menores | C172: Subgrupo 1.- Administracion Financiera | D172: 10.00 | E172: -10.00 | F172: 0 | G172: 0 | H172: 0 | I172: 0 | J172: 0 | K172: 0 | L172: 0 | M172: 0 | N172: 0
A173: 5.6.01.06 | B173: Descuentos, Comisiones y Otros Cargos en Títulos y Valores | C173: Subgrupo 1.- Administracion Financiera | D173: 5,658.96 | E173: 20,000.00 | F173: 25,658.96 | G173: 23,405.86 | H173: 23,405.86 | I173: 21,704.29 | J173: 21,697.44 | K173: 2,253.10 | L173: 3,954.67 | M173: 25,658.96 | N173: 8.78
A174: 5.7.02.01.01 | B174: Segruro (Personal) | C174: Subgrupo 1.- Administracion Financiera | D174: 800.00 | E174: 0 | F174: 800.00 | G174: 800.00 | H174: 800.00 | I174: 800.00 | J174: 800.00 | K174: 0 | L174: 0 | M174: 800.00 | N174: 0
A175: 5.7.02.01.02 | B175: Seguros (Bienes) | C175: Subgrupo 1.- Administracion Financiera | D175: 1,000.00 | E175: 0 | F175: 1,000.00 | G175: 1,000.00 | H175: 1,000.00 | I175: 1,000.00 | J175: 1,000.00 | K175: 0 | L175: 0 | M175: 1,000.00 | N175: 0
A176: 5.7.02.03 | B176: Comisiones Bancarias | C176: Subgrupo 1.- Administracion Financiera | D176: 1,500.00 | E176: 0 | F176: 1,500.00 | G176: 1,055.87 | H176: 1,055.87 | I176: 871.02 | J176: 871.02 | K176: 444.13 | L176: 628.98 | M176: 1,500.00 | N176: 29.61
A177: 5.7.02.19 | B177: Devoluciones | C177: Subgrupo 1.- Administracion Financiera | D177: 1,500.00 | E177: -500.00 | F177: 1,000.00 | G177: 398.78 | H177: 398.78 | I177: 348.78 | J177: 348.78 | K177: 601.22 | L177: 651.22 | M177: 1,000.00 | N177: 0
A178: 8.4.01.03.01 | B178: Mobiliario | C178: Subgrupo 1.- Administracion Financiera | D178: 3,500.00 | E178: -3,500.00 | F178: 0 | G178: 0 | H178: 0 | I178: 0 | J178: 0 | K178: 0 | L178: 0 | M178: 0 | N178: 0
A179: 8.4.01.07.01 | B179: Equipos, Sistemas Y Paquetes Informáticos | C179: Subgrupo 1.- Administracion Financiera | D179: 10,000.00 | E179: 6,240.38 | F179: 16,240.38 | G179: 16,240.38 | H179: 16,240.38 | I179: 0 | J179: 0 | K179: 0 | L179: 16,240.38 | M179: 16,240.38 | N179: 0
A180: 5.1.01.05 | B180: Remuneraciones Unificadas | C180: Subgrupo 2.- Registro De La Propiedad | D180: 45,048.00 | E180: 0 | F180: 45,048.00 | G180: 32,979.67 | H180: 32,979.67 | I180: 29,225.67 | J180: 28,795.83 | K180: 12,068.33 | L180: 15,822.33 | M180: 45,048.00 | N180: 26.79
A181: 5.1.02.03.01 | B181: Decimotercer Sueldo (Personal Permanente) | C181: Subgrupo 2.- Registro De La Propiedad | D181: 3,754.00 | E181: 0 | F181: 3,754.00 | G181: 276.97 | H181: 276.97 | I181: 276.97 | J181: 276.97 | K181: 3,477.03 | L181: 3,477.03 | M181: 3,754.00 | N181: 92.62
A182: 5.1.02.03.02 | B182: Decimotercer Sueldo (Personal Eventual) | C182: Subgrupo 2.- Registro De La Propiedad | D182: 622.00 | E182: 0 | F182: 622.00 | G182: 0 | H182: 0 | I182: 0 | J182: 0 | K182: 622.00 | L182: 622.00 | M182: 622.00 | N182: 100.00
A183: 5.1.02.04.01 | B183: Decimocuarto Sueldo (Personal Permanente) | C183: Subgrupo 2.- Registro De La Propiedad | D183: 1,880.00 | E183: 0 | F183: 1,880.00 | G183: 1,880.00 | H183: 1,880.00 | I183: 1,880.00 | J183: 1,880.00 | K183: 0 | L183: 0 | M183: 1,880.00 | N183: 0
A184: 5.1.02.04.02 | B184: Decimocuarto Sueldo (Personal Eventual) | C184: Subgrupo 2.- Registro De La Propiedad | D184: 470.00 | E184: 0 | F184: 470.00 | G184: 373.14 | H184: 373.14 | I184: 373.14 | J184: 373.14 | K184: 96.86 | L184: 96.86 | M184: 470.00 | N184: 20.61
A185: 5.1.05.10 | B185: Servicios Personales Por Contrato | C185: Subgrupo 2.- Registro De La Propiedad | D185: 7,464.00 | E185: 0 | F185: 7,464.00 | G185: 5,598.00 | H185: 5,598.00 | I185: 4,976.00 | J185: 4,904.79 | K185: 1,866.00 | L185: 2,488.00 | M185: 7,464.00 | N185: 25.00
A186: 5.1.05.12 | B186: Subrogacion | C186: Subgrupo 2.- Registro De La Propiedad | D186: 500.00 | E186: 0 | F186: 500.00 | G186: 0 | H186: 0 | I186: 0 | J186: 0 | K186: 500.00 | L186: 500.00 | M186: 500.00 | N186: 100.00
A187: 5.1.05.13 | B187: Encargos | C187: Subgrupo 2.- Registro De La Propiedad | D187: 500.00 | E187: 0 | F187: 500.00 | G187: 0 | H187: 0 | I187: 0 | J187: 0 | K187: 500.00 | L187: 500.00 | M187: 500.00 | N187: 100.00
A188: 5.1.06.01.01 | B188: Aporte Patronal (Personal Permanente) | C188: Subgrupo 2.- Registro De La Propiedad | D188: 5,248.09 | E188: 0 | F188: 5,248.09 | G188: 3,842.14 | H188: 3,842.14 | I188: 3,404.80 | J188: 2,923.93 | K188: 1,405.95 | L188: 1,843.29 | M188: 5,248.09 | N188: 26.79
A189: 5.1.06.01.02 | B189: Aporte Patronal (Personal Eventual) | C189: Subgrupo 2.- Registro De La Propiedad | D189: 869.56 | E189: 0 | F189: 869.56 | G189: 652.14 | H189: 652.14 | I189: 579.68 | J189: 507.22 | K189: 217.42 | L189: 289.88 | M189: 869.56 | N189: 25.00
A190: 5.1.06.02.01 | B190: Fondos De Reserva (Personal Permanente) | C190: Subgrupo 2.- Registro De La Propiedad | D190: 3,754.00 | E190: 0 | F190: 3,754.00 | G190: 2,983.08 | H190: 2,983.08 | I190: 2,667.71 | J190: 2,667.71 | K190: 770.92 | L190: 1,086.29 | M190: 3,754.00 | N190: 20.54
A191: 5.1.06.02.02 | B191: Fondos De Reserva (Personal Eventual) | C191: Subgrupo 2.- Registro De La Propiedad | D191: 622.00 | E191: 0 | F191: 622.00 | G191: 61.77 | H191: 61.77 | I191: 0 | J191: 0 | K191: 560.23 | L191: 622.00 | M191: 622.00 | N191: 90.07
A192: 5.1.07.07 | B192: Compensacion Por Vacaciones No Gozadas Por Cesacion De Funciones | C192: Subgrupo 2.- Registro De La Propiedad | D192: 2,500.00 | E192: -2,000.00 | F192: 500.00 | G192: 314.67 | H192: 314.67 | I192: 314.67 | J192: 314.67 | K192: 185.33 | L192: 185.33 | M192: 500.00 | N192: 0
A193: 5.3.01.06 | B193: Servicio De Correo | C193: Subgrupo 2.- Registro De La Propiedad | D193: 100.00 | E193: -100.00 | F193: 0 | G193: 0 | H193: 0 | I193: 0 | J193: 0 | K193: 0 | L193: 0 | M193: 0 | N193: 0
A194: 5.3.02.04 | B194: Edición, Impresión, Reproducción Y Publicaciones | C194: Subgrupo 2.- Registro De La Propiedad | D194: 500.00 | E194: -200.00 | F194: 300.00 | G194: 48.00 | H194: 48.00 | I194: 48.00 | J194: 48.00 | K194: 252.00 | L194: 252.00 | M194: 300.00 | N194: =K194*100/F194 -> 84.00
A195: 5.3.02.07 | B195: Difusión, Información Y Publicidad | C195: Subgrupo 2.- Registro De La Propiedad | D195: 100.00 | E195: 0 | F195: 100.00 | G195: 0 | H195: 0 | I195: 0 | J195: 0 | K195: 100.00 | L195: 100.00 | M195: 100.00 | N195: 0
A196: 5.3.02.30 | B196: Digtalización De Información Y Datos Públicos | C196: Subgrupo 2.- Registro De La Propiedad | D196: 3,500.00 | E196: -3,500.00 | F196: 0 | G196: 0 | H196: 0 | I196: 0 | J196: 0 | K196: 0 | L196: 0 | M196: 0 | N196: 0
A197: 5.3.02.55 | B197: Combustible | C197: Subgrupo 2.- Registro De La Propiedad | D197: 100.00 | E197: -100.00 | F197: 0 | G197: 0 | H197: 0 | I197: 0 | J197: 0 | K197: 0 | L197: 0 | M197: 0 | N197: 0
A198: 5.3.04.02 | B198: Edificios, Locales, Residencias y Cableado Estructurado (Instalación, Mantenimiento y Reparación) | C198: Subgrupo 2.- Registro De La Propiedad | D198: 100.00 | E198: -100.00 | F198: 0 | G198: 0 | H198: 0 | I198: 0 | J198: 0 | K198: 0 | L198: 0 | M198: 0 | N198: 0
A199: 5.3.06.01 | B199: Consultoría, Asesoría E Investigación Especializada | C199: Subgrupo 2.- Registro De La Propiedad | D199: 7,000.00 | E199: 27,000.00 | F199: 34,000.00 | G199: 0 | H199: 0 | I199: 0 | J199: 0 | K199: 34,000.00 | L199: 34,000.00 | M199: 34,000.00 | N199: 0
A200: 5.3.06.12 | B200: Capacitación A Servidores Públicos | C200: Subgrupo 2.- Registro De La Propiedad | D200: 10.00 | E200: -10.00 | F200: 0 | G200: 0 | H200: 0 | I200: 0 | J200: 0 | K200: 0 | L200: 0 | M200: 0 | N200: 0
... 841 more rows

Sheet Metadatos
A1: FECHA ACTUALIZACIÓN DE LA INFORMACIÓN | B1: 2025-09-30
A2: PERIODICIDAD DE ACTUALIZACIÓN DE LA INFORMACIÓN | B2: MENSUAL
A3: UNIDAD POSEEDORA DE LA INFORMACIÓN | B3: ÁREA FINANIERA
A4: PERSONA RESPONSABLE DE LA UNIDAD POSEEDORA DE LA INFORMACIÓN | B4: MgS. Lino Novillo Chiriboga
A5: CORREO ELECTRÓNICO DE LA PERSONA RESPONSABLE DE LA UNIDAD POSEEDORA DE LA INFORMACIÓN | B5: gadmch.financiero@gmail.com
A6: NÚMERO TELEFÓNICO DE LA PERSONA RESPONSABLE DE LA UNIDAD POSEEDORA DE LA INFORMACIÓN | B6: (03) 2936-244-245 EXTENSIÓN 108
A7: LICENCIA | B7: CC-BY-4.0

Sheet Diccionario
A1: Institución | B1: GAD Municipal de Chunchi
A2: Descripcion | B2: Presupuesto Institucional
A3: Nombre del campo | B3: Descripcion de campo
A4: Cuenta | B4: Codigo identificador asignado a la categoria; descripcion o partida presupuestaria
A5: Categoria | B5: Categoria a la que pertenece el elemento presupuestario
A6: Descripcion | B6: Descripcion del elemento presupuestario
A7: Asignado | B7: Monto inicialmente asignado al elemento presupuestario
A8: Modificado | B8: Monto modificado o ajustado posteriormente al elemento presupuestario
A9: Codificado | B9: Monto codificado o asignado especificamente al elemento presupuestario
A10: Monto certificado | B10: Monto certificado o aprobado para el elemento presupuestario
A11: Comprometido | B11: Monto comprometido o reservado para el elemento presupuestario
A12: Devengado | B12: Monto devengado o registrado como gasto efectuado en relacion al elemento presupuestario
A13: Pagado | B13: Monto pagado o desembolsado hasta la fecha en relacion al elemento presupuestario
A14: Saldo por comprometer | B14: Saldo restante por comprometer o reservar para el elemento presupuestario
A15: Saldo por devengar | B15: Saldo restante por devengar o registrar como gasto en relacion al elemento presupuestario
A16: Saldo por pagar | B16: Saldo restante por pagar o desembolsar en relacion al elemento presupuestario
A17: Porcentaje de ejecucion | B17: Porcentaje de ejecucion o avance del gasto en relacion al monto total asignado al elemento presupuestario
